bitfinex/quotes_BTCUSD_20250614
["timestamp","ask_amount","ask_price","bid_price","bid_amount"]
[1749859724975,0.56630778,106050.0,106040.0,0.60476773]
[1749859725992,0.34,106050.0,106040.0,0.63739756]
[1749859726207,0.34942871,106050.0,106040.0,0.63739694]
[1749859726412,0.34,106050.0,106040.0,0.63739694]
[1749859727055,0.3494288,106050.0,106040.0,0.63739694]
[1749859727261,0.35885778,106050.0,106040.0,0.63739694]
[1749859728483,0.34,106050.0,106040.0,0.63739694]
[1749859728698,0.3588576,106050.0,106040.0,0.63739694]
[1749859729855,0.36828666,106050.0,106040.0,0.63739694]
[1749859730307,0.34942871,106050.0,106040.0,0.63739694]
[1749859730509,0.35885751,106050.0,106040.0,0.63739694]
[1749859731325,0.36828649,106050.0,106040.0,0.63739694]
[1749859731548,0.35885751,106050.0,106040.0,0.63739694]
[1749859731970,0.36828657,106050.0,106040.0,0.63739694]
[1749859732588,0.36828649,106050.0,106040.0,0.63739694]
[1749859734571,0.34,106050.0,106040.0,0.63739694]
[1749859734777,0.00962751,106060.0,106050.0,0.32927774]
[1749859734999,0.00962751,106060.0,106050.0,0.50799794]
[1749859735257,0.37792086,106070.0,106060.0,0.32925729]
[1749859735512,0.57590322,106070.0,106060.0,0.57275105]
[1749859735711,0.57590322,106070.0,106060.0,0.56332279]
[1749859735922,0.54762145,106070.0,106060.0,0.36532176]
[1749859736142,0.54762145,106070.0,106060.0,0.56332288]
[1749859736771,0.54762145,106070.0,106060.0,0.57275141]
[1749859737626,0.53819381,106070.0,106060.0,0.1576]
[1749859738104,0.59889381,106070.0,106060.0,0.001]
[1749859738314,0.59889381,106070.0,106060.0,0.15768]
[1749859740249,0.59889381,106070.0,106060.0,0.001]
[1749859740464,5.84889381,106070.0,106060.0,0.001]
[1749859741590,5.94513557,106070.0,106060.0,0.001]
[1749859741857,0.19801961,106050.0,106040.0,0.05004751]
[1749859742092,0.19801961,106050.0,106040.0,0.20664751]
[1749859742312,0.23981961,106050.0,106040.0,0.20664751]
[1749859742536,0.23981961,106050.0,106040.0,0.20668751]
[1749859743447,0.23981961,106050.0,106040.0,0.05204751]
[1749859743672,5.89441961,106050.0,106040.0,0.00204751]
[1749859743891,5.87957761,106050.0,106040.0,0.00204751]
[1749859744114,0.93665961,106050.0,106040.0,0.00404751]
[1749859744322,0.77981961,106050.0,106040.0,0.00404751]
[1749859744748,0.77981961,106050.0,106040.0,4.751e-05]
[1749859744963,0.78081961,106050.0,106040.0,4.751e-05]
[1749859745175,0.78481961,106050.0,106040.0,4.751e-05]
[1749859745386,0.78381961,106050.0,106040.0,4.751e-05]
[1749859745848,0.74401961,106050.0,106040.0,4.751e-05]
[1749859746058,0.58561961,106050.0,106040.0,4.751e-05]
[1749859746273,0.58561961,106050.0,106040.0,0.03024751]
[1749859747369,0.58161961,106050.0,106040.0,0.03024751]
[1749859747804,0.53801961,106050.0,106040.0,0.06294751]
[1749859748021,0.57961961,106050.0,106040.0,0.06294751]
[1749859748237,0.58061961,106050.0,106040.0,0.06294751]
[1749859754356,0.58061961,106050.0,106040.0,4.751e-05]
[1749859754570,0.64371961,106050.0,106040.0,4.751e-05]
[1749859755229,5.69371961,106050.0,106040.0,4.751e-05]
[1749859761411,5.89371961,106050.0,106040.0,4.751e-05]
[1749859762555,5.98996137,106050.0,106040.0,4.751e-05]
[1749859763236,6.14724137,106050.0,106040.0,4.751e-05]
[1749859763443,6.1831089,106050.0,106040.0,4.751e-05]
[1749859763660,6.14724137,106050.0,106040.0,4.751e-05]
[1749859764565,6.14716137,106050.0,106040.0,4.751e-05]
[1749859765233,6.17548037,106050.0,106040.0,4.751e-05]
[1749859768609,5.81733861,106050.0,106040.0,4.751e-05]
[1749859768834,5.98765961,106050.0,106040.0,0.03094751]
[1749859769049,0.93765961,106050.0,106040.0,0.03094751]
[1749859769950,0.93765961,106050.0,106040.0,4.751e-05]
[1749859771136,5.98765961,106050.0,106040.0,4.751e-05]
[1749859771568,6.05205961,106050.0,106040.0,4.751e-05]
[1749859772767,6.14830137,106050.0,106040.0,4.751e-05]
[1749859773015,6.17650465,106050.0,106040.0,4.751e-05]
[1749859776903,1.12650465,106050.0,106040.0,4.751e-05]
[1749859777143,6.17650465,106050.0,106040.0,4.751e-05]
[1749859779300,6.20482365,106050.0,106040.0,4.751e-05]
[1749859786597,6.24242803,106050.0,106040.0,4.751e-05]
[1749859787271,1.19242803,106050.0,106040.0,4.751e-05]
[1749859787636,6.24242803,106050.0,106040.0,4.751e-05]
[1749859788908,6.27071264,106050.0,106040.0,4.751e-05]
[1749859789327,6.27563599,106050.0,106040.0,4.751e-05]
[1749859789983,6.07699599,106050.0,106040.0,4.751e-05]
[1749859790210,6.27567599,106050.0,106040.0,4.751e-05]
[1749859794333,6.51021684,106050.0,106040.0,4.751e-05]
[1749859794534,7.17261246,106050.0,106040.0,4.751e-05]
[1749859794902,7.44429246,106050.0,106040.0,4.751e-05]
[1749859795325,0.74748781,106030.0,106020.0,0.033]
[1749859795531,5.9711603,106030.0,106020.0,0.03304753]
[1749859795755,5.58807565,106020.0,106010.0,0.07589773]
[1749859795962,5.44809433,106010.0,106000.0,0.0651]
[1749859796177,5.60505433,106010.0,106000.0,0.06514758]
[1749859796381,5.63346103,106010.0,106000.0,0.06514758]
[1749859797276,5.97346103,106010.0,106000.0,0.06514758]
[1749859797489,5.97646103,106010.0,106000.0,0.06514758]
[1749859798570,5.97846103,106010.0,106000.0,0.06514758]
[1749859806756,5.82150103,106010.0,106000.0,0.06514758]
[1749859806993,6.02050103,106010.0,106000.0,0.06514758]
[1749859808542,5.62150103,106010.0,106000.0,0.06514758]
[1749859808747,0.58489433,106010.0,106000.0,0.06514758]
[1749859813114,0.54309433,106010.0,106000.0,0.06514758]
[1749859813283,0.58489433,106010.0,106000.0,0.06514758]
[1749859814433,0.54309433,106010.0,106000.0,0.31326078]
[1749859814638,0.58489433,106010.0,106000.0,0.32208687]
[1749859814853,0.57546144,106010.0,106000.0,0.32208669]
[1749859815380,0.57546144,106010.0,106000.0,0.32208666]
[1749859815795,0.53366144,106010.0,106000.0,0.32208628]
[1749859816049,0.57546144,106010.0,106000.0,0.13340704]
[1749859816257,0.57546144,106010.0,106000.0,0.133407]
[1749859816465,0.57546144,106010.0,106000.0,0.13340693]
[1749859816678,0.57246144,106010.0,106000.0,0.1334069]
[1749859816890,0.57046144,106010.0,106000.0,0.13340688]
[1749859817095,0.57146144,106010.0,106000.0,0.12458154]
[1749859817298,0.57246144,106010.0,106000.0,0.12458154]
[1749859817711,0.57246144,106010.0,106000.0,0.13340687]
[1749859817919,0.57246144,106010.0,106000.0,0.13340699]
[1749859818124,0.57246144,106010.0,106000.0,0.13340697]
[1749859818328,0.57246144,106010.0,106000.0,0.12458154]
[1749859818569,0.57246144,106010.0,106000.0,0.13340696]
[1749859818766,0.57246144,106010.0,106000.0,0.31326078]
[1749859818973,0.57246144,106010.0,106000.0,0.32208619]
[1749859819273,0.57246144,106010.0,106000.0,0.31326078]
[1749859819651,0.57246144,106010.0,106000.0,0.32208618]
[1749859820877,0.57246144,106010.0,106000.0,0.13340694]
[1749859822039,0.57246144,106010.0,106000.0,0.12458154]
[1749859822263,0.57246144,106010.0,106000.0,0.13340294]
[1749859822766,0.57246144,106010.0,106000.0,0.13340293]
[1749859822925,0.57246144,106010.0,106000.0,0.13340289]
[1749859823577,0.60832897,106010.0,106000.0,0.12396891]
[1749859823787,0.57246144,106010.0,106000.0,0.12396921]
[1749859823990,0.57246144,106010.0,106000.0,0.32208241]
[1749859824401,0.39323262,106010.0,106000.0,0.43780334]
[1749859824612,0.61962518,106010.0,106000.0,0.43780352]
[1749859824817,0.61019282,106010.0,106000.0,0.43780352]
[1749859825535,0.56839282,106010.0,106000.0,0.43780352]
[1749859826043,0.56839282,106010.0,106000.0,0.44723685]
[1749859826667,0.56839282,106010.0,106000.0,0.43780352]
[1749859826875,0.56839282,106010.0,106000.0,0.44723694]
[1749859827541,0.37973138,106010.0,106000.0,0.44723694]
[1749859827723,0.37973138,106010.0,106000.0,0.44723631]
[1749859828577,0.37029831,106010.0,106000.0,0.44723631]
[1749859831024,0.37029822,106010.0,106000.0,0.44723631]
[1749859831866,0.36086533,106010.0,106000.0,0.44723631]
[1749859832275,0.37029822,106010.0,106000.0,0.44723631]
[1749859833212,0.36086533,106010.0,106000.0,0.44723631]
[1749859834115,0.37029822,106010.0,106000.0,0.44723631]
[1749859834779,0.36086533,106010.0,106000.0,0.44723631]
[1749859835252,0.37029813,106010.0,106000.0,0.44723631]
[1749859836581,0.36086533,106010.0,106000.0,0.44723631]
[1749859836779,0.37029813,106010.0,106000.0,0.44723631]
[1749859837903,0.36086498,106010.0,106000.0,0.44723631]
[1749859838219,0.37029778,106010.0,106000.0,0.44723631]
[1749859838430,0.36086498,106010.0,106000.0,0.44723631]
[1749859838698,0.002,106010.0,106000.0,0.44723631]
[1749859838896,0.002,106010.0,106000.0,0.48476392]
[1749859839537,0.001,106010.0,106000.0,0.48476392]
[1749859839751,0.36829537,106020.0,106010.0,0.28105957]
[1749859839981,0.36829537,106020.0,106010.0,0.53354133]
[1749859841352,0.37772746,106020.0,106010.0,0.53354133]
[1749859841548,0.37872746,106020.0,106010.0,0.53354133]
[1749859842413,0.37972746,106020.0,106010.0,0.53354133]
[1749859842884,0.37029537,106020.0,106010.0,0.53354133]
[1749859843091,0.36086337,106020.0,106010.0,0.61640756]
[1749859843528,0.37029537,106020.0,106010.0,0.61640756]
[1749859843982,0.36086337,106020.0,106010.0,0.61640756]
[1749859844192,0.37029528,106020.0,106010.0,0.61640756]
[1749859845266,0.37029537,106020.0,106010.0,0.61640756]
[1749859849063,0.37029537,106020.0,106010.0,0.53354133]
[1749859849555,0.36086337,106020.0,106010.0,0.53354133]
[1749859849777,0.37029537,106020.0,106010.0,0.53354133]
[1749859851843,0.56837111,106020.0,106010.0,0.53354142]
[1749859852089,0.37972746,106020.0,106010.0,0.54297386]
[1749859853302,0.37029537,106020.0,106010.0,0.54297386]
[1749859854051,0.36086337,106020.0,106010.0,0.60378782]
[1749859854467,0.37029537,106020.0,106010.0,0.60378782]
[1749859860399,0.56837111,106020.0,106010.0,0.53354142]
[1749859860609,0.56837111,106020.0,106010.0,0.35843618]
[1749859860832,0.54007574,106020.0,106010.0,0.30216176]
[1749859861050,0.60217574,106020.0,106010.0,0.1550471]
[1749859861267,0.60217574,106020.0,106010.0,0.20592]
[1749859861708,0.60217574,106020.0,106010.0,0.05]
[1749859861921,0.60217574,106020.0,106010.0,0.20596]
[1749859862348,0.60217574,106020.0,106010.0,0.05]
[1749859862781,0.60217574,106020.0,106010.0,0.05882914]
[1749859862989,5.65217574,106020.0,106010.0,0.00882914]
[1749859863204,0.26019433,106010.0,106000.0,0.20596758]
[1749859863421,0.26019433,106010.0,106000.0,0.00887862]
[1749859863640,5.85019433,106010.0,106000.0,0.00887862]
[1749859863856,5.85019433,106010.0,106000.0,0.00888093]
[1749859864118,5.85019433,106010.0,106000.0,4.758e-05]
[1749859864331,5.88606186,106010.0,106000.0,4.758e-05]
[1749859864548,5.85019433,106010.0,106000.0,4.758e-05]
[1749859864980,5.85019433,106010.0,106000.0,0.00204758]
[1749859865185,5.85019433,106010.0,106000.0,0.00104758]
[1749859865668,5.85119433,106010.0,106000.0,0.00104758]
[1749859866295,5.85119433,106010.0,106000.0,4.758e-05]
[1749859870888,5.85119433,106010.0,106000.0,0.00888196]
[1749859871125,5.85119433,106010.0,106000.0,0.00888192]
[1749859872023,5.85119433,106010.0,106000.0,0.00888187]
[1749859872236,5.85119433,106010.0,106000.0,4.758e-05]
[1749859872640,5.85119433,106010.0,106000.0,0.00888195]
[1749859873172,5.85119433,106010.0,106000.0,4.758e-05]
[1749859873391,5.85119433,106010.0,106000.0,0.00888192]
[1749859873599,5.85119433,106010.0,106000.0,4.758e-05]
[1749859873812,5.85119433,106010.0,106000.0,0.00888188]
[1749859874041,5.85119433,106010.0,106000.0,0.0088819]
[1749859874255,5.85119433,106010.0,106000.0,0.00888188]
[1749859874679,5.85119433,106010.0,106000.0,0.00888191]
[1749859875091,5.85119433,106010.0,106000.0,0.00888192]
[1749859875512,5.85119433,106010.0,106000.0,0.00888191]
[1749859875705,5.85119433,106010.0,106000.0,4.758e-05]
[1749859876367,5.85119433,106010.0,106000.0,0.00888198]
[1749859876586,5.85119433,106010.0,106000.0,0.00888199]
[1749859876805,5.85119433,106010.0,106000.0,0.00888197]
[1749859877038,5.85119433,106010.0,106000.0,0.00888199]
[1749859877256,5.85119433,106010.0,106000.0,0.00888203]
[1749859877688,5.85119433,106010.0,106000.0,0.00888187]
[1749859878080,5.85119433,106010.0,106000.0,0.00888189]
[1749859878282,5.85119433,106010.0,106000.0,0.00888186]
[1749859878485,5.85119433,106010.0,106000.0,4.758e-05]
[1749859878698,5.85119433,106010.0,106000.0,0.00888163]
[1749859878911,0.78061433,106010.0,106000.0,0.00888146]
[1749859879127,0.78061433,106010.0,106000.0,0.00888079]
[1749859879404,0.78061433,106010.0,106000.0,4.758e-05]
[1749859883918,0.53909433,106010.0,106000.0,4.758e-05]
[1749859884129,0.58065433,106010.0,106000.0,0.12218041]
[1749859884344,0.58065433,106010.0,106000.0,0.11334758]
[1749859884582,0.58065433,106010.0,106000.0,0.12217991]
[1749859884787,0.58065433,106010.0,106000.0,0.11334758]
[1749859885004,0.58065433,106010.0,106000.0,0.12218]
[1749859885211,0.58065433,106010.0,106000.0,0.09078]
[1749859885423,0.58065433,106010.0,106000.0,0.08194758]
[1749859885870,0.58065433,106010.0,106000.0,0.11334758]
[1749859886101,0.58065433,106010.0,106000.0,0.12217999]
[1749859886740,0.53909433,106010.0,106000.0,0.12217999]
[1749859886956,0.58061433,106010.0,106000.0,0.12217963]
[1749859887236,0.58061433,106010.0,106000.0,0.11334758]
[1749859887867,0.58061433,106010.0,106000.0,0.12217953]
[1749859888089,0.58061433,106010.0,106000.0,0.05004758]
[1749859888564,0.61648186,106010.0,106000.0,4.758e-05]
[1749859888786,0.64231433,106010.0,106000.0,4.758e-05]
[1749859889491,0.58061433,106010.0,106000.0,4.758e-05]
[1749859889964,0.58061433,106010.0,106000.0,0.00887956]
[1749859890190,0.58061433,106010.0,106000.0,4.758e-05]
[1749859891110,0.58061433,106010.0,106000.0,0.00887955]
[1749859894366,0.58061433,106010.0,106000.0,0.00887951]
[1749859894591,0.53909433,106010.0,106000.0,0.03947951]
[1749859894925,0.54852713,106010.0,106000.0,0.12267916]
[1749859895050,0.55796011,106010.0,106000.0,0.33022558]
[1749859895300,0.55796011,106010.0,106000.0,0.3302252]
[1749859895550,0.341,106010.0,106000.0,0.65691232]
[1749859895800,0.001,106010.0,106000.0,0.78554902]
[1749859896038,0.001,106010.0,106000.0,0.70965129]
[1749859896285,0.02929787,106010.0,106000.0,0.69762588]
[1749859896494,0.02929778,106010.0,106000.0,0.64133158]
[1749859896706,0.02929778,106010.0,106000.0,0.64157158]
[1749859896707,0.03873067,106010.0,106000.0,0.64157158]
[1749859897133,0.03873067,106010.0,106000.0,0.65039798]
[1749859897351,0.03873067,106010.0,106000.0,0.651398]
[1749859897565,0.03873067,106010.0,106000.0,0.61380307]
[1749859897774,0.04716436,106010.0,106000.0,0.60436974]
[1749859897986,0.04716436,106010.0,106000.0,0.61580316]
[1749859898195,0.04716436,106010.0,106000.0,0.61580318]
[1749859898411,0.01886542,106010.0,106000.0,0.61580253]
[1749859898675,0.02829831,106010.0,106000.0,0.61580253]
[1749859898917,0.02829831,106010.0,106000.0,0.60697613]
[1749859899132,0.02829831,106010.0,106000.0,0.61580253]
[1749859899564,0.01886542,106010.0,106000.0,0.61580253]
[1749859899780,0.01886542,106010.0,106000.0,0.61580252]
[1749859900021,0.01886542,106010.0,106000.0,0.61580253]
[1749859900243,0.01886542,106010.0,106000.0,0.60697613]
[1749859900454,0.01886542,106010.0,106000.0,0.61575636]
[1749859900885,0.00943236,106010.0,106000.0,0.69917012]
[1749859901095,0.01886498,106010.0,106000.0,0.69917013]
[1749859901304,0.01886498,106010.0,106000.0,0.69038989]
[1749859901525,0.01886498,106010.0,106000.0,0.69917011]
[1749859901733,0.01886498,106010.0,106000.0,0.61575635]
[1749859902160,0.01886498,106010.0,106000.0,0.61575637]
[1749859902581,0.02829778,106010.0,106000.0,0.60697613]
[1749859902818,0.01886498,106010.0,106000.0,0.61575636]
[1749859903032,0.01886498,106010.0,106000.0,0.60697613]
[1749859903246,0.01886498,106010.0,106000.0,0.61575635]
[1749859904755,0.01886498,106010.0,106000.0,0.60697613]
[1749859904994,0.01886498,106010.0,106000.0,0.61575635]
[1749859904995,0.00943236,106010.0,106000.0,0.61575635]
[1749859905206,0.0188648,106010.0,106000.0,0.61575635]
[1749859905640,0.02829742,106010.0,106000.0,0.61575635]
[1749859905858,0.02829742,106010.0,106000.0,0.61575634]
[1749859906621,0.0188648,106010.0,106000.0,0.61575632]
[1749859907142,0.0188648,106010.0,106000.0,0.61576462]
[1749859907352,0.02829742,106010.0,106000.0,0.61576462]
[1749859907565,0.0188648,106010.0,106000.0,0.61576462]
[1749859907771,0.02829733,106010.0,106000.0,0.61576462]
[1749859908193,0.0188648,106010.0,106000.0,0.61576462]
[1749859908404,0.0188648,106010.0,106000.0,0.60697613]
[1749859908617,0.0188648,106010.0,106000.0,0.61576462]
[1749859909027,0.0188648,106010.0,106000.0,0.60697613]
[1749859909232,0.0188648,106010.0,106000.0,0.61576462]
[1749859909410,0.0188648,106010.0,106000.0,0.61576463]
[1749859909834,0.0188648,106010.0,106000.0,0.61580209]
[1749859910264,0.0188648,106010.0,106000.0,0.70001129]
[1749859910667,0.0188648,106010.0,106000.0,0.70883725]
[1749859910870,0.0188648,106010.0,106000.0,0.62462805]
[1749859911608,0.55694003,106020.0,106010.0,0.24012695]
[1749859911818,0.35886391,106020.0,106010.0,0.28928534]
[1749859912021,0.36829537,106020.0,106010.0,0.28045939]
[1749859912201,0.37772746,106020.0,106010.0,0.28928532]
[1749859912555,0.37772746,106020.0,106010.0,0.28045939]
[1749859912958,0.38715964,106020.0,106010.0,0.28045939]
[1749859913361,0.38715964,106020.0,106010.0,0.28928531]
[1749859913965,0.38715964,106020.0,106010.0,0.28045939]
[1749859914169,0.38715964,106020.0,106010.0,0.28928531]
[1749859914783,0.37772746,106020.0,106010.0,0.28928531]
[1749859915261,0.37772746,106020.0,106010.0,0.31429455]
[1749859915610,0.37772746,106020.0,106010.0,0.28045939]
[1749859915970,0.38715964,106020.0,106010.0,0.28045939]
[1749859916179,0.38715964,106020.0,106010.0,0.28928531]
[1749859916419,0.56637174,106020.0,106010.0,0.27985287]
[1749859916616,0.55693992,106020.0,106010.0,0.26159433]
[1749859916816,0.55693992,106020.0,106010.0,0.27985291]
[1749859917454,0.35886409,106020.0,106010.0,0.28928544]
[1749859917660,0.36829627,106020.0,106010.0,0.28928584]
[1749859918077,0.36829627,106020.0,106010.0,0.29871828]
[1749859918516,0.55693992,106020.0,106010.0,0.28928584]
[1749859918698,0.55693992,106020.0,106010.0,0.28045948]
[1749859918934,0.55693992,106020.0,106010.0,0.24955948]
[1749859919155,0.55693992,106020.0,106010.0,0.25838584]
[1749859919375,0.55693992,106020.0,106010.0,0.23069433]
[1749859919589,0.54750792,106020.0,106010.0,0.1974878]
[1749859919795,0.00943271,106010.0,106000.0,0.59263498]
[1749859920004,0.01886533,106010.0,106000.0,0.6014614]
[1749859920449,0.02829813,106010.0,106000.0,0.60078136]
[1749859920665,0.03773102,106010.0,106000.0,0.60138912]
[1749859920887,0.03773102,106010.0,106000.0,0.61021551]
[1749859921112,0.03773102,106010.0,106000.0,0.60438912]
[1749859921327,0.03773102,106010.0,106000.0,0.61321552]
[1749859921575,0.03773102,106010.0,106000.0,0.61321556]
[1749859921820,0.02829813,106010.0,106000.0,0.65081047]
[1749859922039,0.03773102,106010.0,106000.0,0.65081047]
[1749859922265,0.03773102,106010.0,106000.0,0.64198403]
[1749859922487,0.03773102,106010.0,106000.0,0.65081046]
[1749859922708,0.047164,106010.0,106000.0,0.64137715]
[1749859922932,0.23582589,106010.0,106000.0,0.66024408]
[1749859923171,0.0282984,106010.0,106000.0,0.66024354]
[1749859923628,0.0282984,106010.0,106000.0,0.651417]
[1749859923858,0.20752713,106010.0,106000.0,0.26703675]
[1749859924101,0.54752713,106010.0,106000.0,0.32414184]
[1749859924331,0.54752713,106010.0,106000.0,0.52225781]
[1749859924557,0.54752713,106010.0,106000.0,0.56399172]
[1749859924770,0.54752713,106010.0,106000.0,0.55455803]
[1749859925010,0.54752713,106010.0,106000.0,0.5639919]
[1749859925494,0.53809433,106010.0,106000.0,0.32414483]
[1749859925952,0.60079433,106010.0,106000.0,0.07070307]
[1749859926178,0.60079433,106010.0,106000.0,0.22794322]
[1749859926410,0.60079433,106010.0,106000.0,0.22794317]
[1749859926677,0.60079433,106010.0,106000.0,0.02070317]
[1749859926929,0.60079433,106010.0,106000.0,0.17794317]
[1749859927390,0.60079433,106010.0,106000.0,0.17794485]
[1749859927599,0.60079433,106010.0,106000.0,0.16911354]
[1749859927824,0.60079433,106010.0,106000.0,0.17794476]
[1749859928558,0.60079433,106010.0,106000.0,0.17794475]
[1749859928770,0.60079433,106010.0,106000.0,0.01187354]
[1749859928999,0.60079433,106010.0,106000.0,0.16915354]
[1749859929695,0.60079433,106010.0,106000.0,0.17798476]
[1749859930337,0.60079433,106010.0,106000.0,0.17798474]
[1749859930583,0.60079433,106010.0,106000.0,0.16915354]
[1749859930792,0.60079433,106010.0,106000.0,0.17798502]
[1749859930994,0.60079433,106010.0,106000.0,0.17798487]
[1749859931172,0.60079433,106010.0,106000.0,0.16915354]
[1749859931520,0.60079433,106010.0,106000.0,0.17798477]
[1749859931731,0.60079433,106010.0,106000.0,0.16915354]
[1749859931946,0.60079433,106010.0,106000.0,0.17798488]
[1749859932583,0.60079433,106010.0,106000.0,0.16915354]
[1749859934491,0.60079433,106010.0,106000.0,0.01187354]
[1749859935582,5.65079433,106010.0,106000.0,0.01187354]
[1749859937890,0.53809433,106010.0,106000.0,0.13280741]
[1749859938127,0.55696002,106010.0,106000.0,0.12337354]
[1749859938352,0.55696002,106010.0,106000.0,0.28073354]
[1749859938803,0.59876002,106010.0,106000.0,0.28073354]
[1749859939029,0.59876002,106010.0,106000.0,0.47884665]
[1749859940197,0.59876002,106010.0,106000.0,0.28073354]
[1749859940430,0.5893274,106010.0,106000.0,0.21923354]
[1749859941294,0.6525274,106010.0,106000.0,0.01187354]
[1749859941526,0.6525274,106010.0,106000.0,0.16939354]
[1749859941763,0.6525274,106010.0,106000.0,0.01187354]
[1749859942821,0.5893274,106010.0,106000.0,0.01187354]
[1749859944516,0.6520274,106010.0,106000.0,0.01187354]
[1749859950130,5.7020274,106010.0,106000.0,0.01187354]
[1749859951822,5.6693274,106010.0,106000.0,0.01187354]
[1749859952032,5.6393274,106010.0,106000.0,0.01187354]
[1749859953316,5.6393274,106010.0,106000.0,0.02069639]
[1749859953534,5.6393274,106010.0,106000.0,0.02069634]
[1749859953739,5.6393274,106010.0,106000.0,0.02069627]
[1749859953958,0.5893274,106010.0,106000.0,0.02069609]
[1749859954173,0.5893274,106010.0,106000.0,0.07797354]
[1749859954391,0.5893274,106010.0,106000.0,0.08679571]
[1749859954619,0.5893274,106010.0,106000.0,0.0867956]
[1749859954805,0.5893274,106010.0,106000.0,0.07797354]
[1749859955024,0.5893274,106010.0,106000.0,0.08679586]
[1749859955242,0.5893274,106010.0,106000.0,0.08679587]
[1749859955459,0.5893274,106010.0,106000.0,0.07797354]
[1749859955683,0.5893274,106010.0,106000.0,0.08679587]
[1749859956619,0.5893274,106010.0,106000.0,0.07797354]
[1749859956982,0.5893274,106010.0,106000.0,0.08679586]
[1749859957428,0.5893274,106010.0,106000.0,0.07797354]
[1749859957634,0.5893274,106010.0,106000.0,0.08679588]
[1749859958326,0.5893274,106010.0,106000.0,0.07797354]
[1749859958656,0.5893274,106010.0,106000.0,0.08679587]
[1749859959147,0.5893274,106010.0,106000.0,0.07797354]
[1749859959352,0.5893274,106010.0,106000.0,0.02069587]
[1749859959773,0.6511274,106010.0,106000.0,0.02069587]
[1749859960218,0.6511274,106010.0,106000.0,0.01187354]
[1749859960431,0.6511274,106010.0,106000.0,0.02069597]
[1749859960637,0.6511274,106010.0,106000.0,0.02069599]
[1749859961074,0.6511274,106010.0,106000.0,0.02069626]
[1749859961277,0.6511274,106010.0,106000.0,0.020696]
[1749859961599,0.6511274,106010.0,106000.0,0.01187354]
[1749859961814,0.6193274,106010.0,106000.0,0.01187354]
[1749859962029,0.6193274,106010.0,106000.0,0.02069595]
[1749859962231,0.6193274,106010.0,106000.0,0.02069605]
[1749859962371,0.6511274,106010.0,106000.0,0.02069605]
[1749859962780,0.6511274,106010.0,106000.0,0.02070489]
[1749859962979,0.6511274,106010.0,106000.0,0.0207049]
[1749859963199,0.6511274,106010.0,106000.0,0.020705]
[1749859963774,0.6511274,106010.0,106000.0,0.02070506]
[1749859963986,5.73699493,106010.0,106000.0,0.02070565]
[1749859964176,5.7011274,106010.0,106000.0,0.02070565]
[1749859964394,5.7011274,106010.0,106000.0,0.01187354]
[1749859965540,5.8580074,106010.0,106000.0,0.01187354]
[1749859984731,5.7958874,106010.0,106000.0,0.01187354]
[1749859985152,5.83175493,106010.0,106000.0,0.01187354]
[1749859985367,5.8578874,106010.0,106000.0,0.01187354]
[1749859990172,5.88616185,106010.0,106000.0,0.01187354]
[1749859990389,5.8578874,106010.0,106000.0,0.01187354]
[1749859990832,5.88616185,106010.0,106000.0,0.01187354]
[1749859991057,5.8578874,106010.0,106000.0,0.01187354]
[1749859991501,5.88616185,106010.0,106000.0,0.01187354]
[1749859992100,5.8578874,106010.0,106000.0,0.01187354]
[1749859992317,5.82416185,106010.0,106000.0,0.01187354]
[1749859993417,5.88556185,106010.0,106000.0,0.01187354]
[1749859993849,5.82416185,106010.0,106000.0,0.01187354]
[1749859994596,5.88566185,106010.0,106000.0,0.01187354]
[1749859994805,0.83566185,106010.0,106000.0,0.01187354]
[1749859995023,5.88566185,106010.0,106000.0,0.01187354]
[1749859995564,5.85476185,106010.0,106000.0,0.01187354]
[1749859996008,5.82416185,106010.0,106000.0,0.01187354]
[1749859996648,5.88566185,106010.0,106000.0,0.01187354]
[1749859996876,5.58811302,106000.0,105990.0,0.0633]
[1749859997112,5.58811302,106000.0,105990.0,0.06334759]
[1749859997553,5.62963302,106000.0,105990.0,0.06334759]
[1749859998311,5.62963302,106000.0,105990.0,0.06734759]
[1749859998528,5.62963302,106000.0,105990.0,0.06934759]
[1749859999667,5.62963302,106000.0,105990.0,0.01934759]
[1749859999668,5.63902127,106000.0,105990.0,0.01934759]
[1749860000154,5.63902127,106000.0,105990.0,0.00604759]
[1749860001291,5.63902127,106000.0,105990.0,0.00404759]
[1749860001526,5.63902127,106000.0,105990.0,4.759e-05]
[1749860001748,5.63902127,106000.0,105990.0,0.00104759]
[1749860002289,5.82856127,106000.0,105990.0,0.00104759]
[1749860002522,5.86096127,106000.0,105990.0,0.00104759]
[1749860003217,5.86096127,106000.0,105990.0,4.759e-05]
[1749860003456,5.86496127,106000.0,105990.0,4.759e-05]
[1749860004372,0.81496127,106000.0,105990.0,4.759e-05]
[1749860004597,5.86696127,106000.0,105990.0,4.759e-05]
[1749860005293,5.96320303,106000.0,105990.0,4.759e-05]
[1749860005986,5.99147748,106000.0,105990.0,4.759e-05]
[1749860006474,5.96320303,106000.0,105990.0,4.759e-05]
[1749860006933,0.53813171,105990.0,105980.0,0.1]
[1749860007195,5.58813171,105990.0,105980.0,0.10004761]
[1749860008093,5.94557171,105990.0,105980.0,0.10004761]
[1749860008323,6.00967171,105990.0,105980.0,0.10004761]
[1749860008546,6.01067171,105990.0,105980.0,0.10004761]
[1749860010193,5.98037171,105990.0,105980.0,0.10004761]
[1749860010423,6.01623924,105990.0,105980.0,0.10004761]
[1749860010637,5.98037171,105990.0,105980.0,0.10004761]
[1749860012246,6.01297171,105990.0,105980.0,0.10004761]
[1749860012470,5.98037171,105990.0,105980.0,0.10004761]
[1749860016371,5.94757171,105990.0,105980.0,0.10004761]
[1749860018795,5.98917171,105990.0,105980.0,0.10004761]
[1749860020613,5.79013171,105990.0,105980.0,0.10004761]
[1749860020840,5.98913171,105990.0,105980.0,0.10004761]
[1749860022865,6.01993171,105990.0,105980.0,0.10004761]
[1749860023559,6.05003171,105990.0,105980.0,0.10004761]
[1749860026507,6.01993171,105990.0,105980.0,0.10004761]
[1749860026928,5.98913171,105990.0,105980.0,0.10004761]
[1749860027140,5.79013171,105990.0,105980.0,0.10004761]
[1749860027346,5.98941171,105990.0,105980.0,0.10004761]
[1749860027556,5.79013171,105990.0,105980.0,0.10004761]
[1749860027778,5.98941171,105990.0,105980.0,0.10004761]
[1749860027998,5.98945171,105990.0,105980.0,0.10004761]
[1749860030068,5.79013171,105990.0,105980.0,0.10004761]
[1749860030314,5.98941171,105990.0,105980.0,0.16294761]
[1749860030941,5.79013171,105990.0,105980.0,0.16294761]
[1749860031125,5.98941171,105990.0,105980.0,0.16294761]
[1749860031763,0.58201171,105990.0,105980.0,0.17178144]
[1749860031975,0.58201171,105990.0,105980.0,0.22178043]
[1749860032186,0.58201171,105990.0,105980.0,0.21294761]
[1749860032699,0.58201171,105990.0,105980.0,0.22177975]
[1749860032913,0.58201171,105990.0,105980.0,0.21294761]
[1749860033138,0.58201171,105990.0,105980.0,0.22177979]
[1749860033581,0.58201171,105990.0,105980.0,0.22177978]
[1749860034573,0.58201171,105990.0,105980.0,0.22177997]
[1749860034772,0.58201171,105990.0,105980.0,0.22177994]
[1749860034997,0.58201171,105990.0,105980.0,0.21294761]
[1749860035201,0.58201171,105990.0,105980.0,0.22178026]
[1749860035405,0.58201171,105990.0,105980.0,0.21294761]